bitfinex-derivatives/quotes_SOLF0:USTF0_20250124
["timestamp","ask_amount","ask_price","bid_price","bid_amount"]
[1737755534984,0.02481482,257.85,257.81,3.8785]
[1737755535177,0.02481482,257.85,257.79,0.02500126]
[1737755535484,0.02481482,257.85,257.83,3.8782]
[1737755536983,0.02481482,257.85,257.83,3.8783]
[1737755537687,1.482e-05,257.85,257.83,3.8783]
[1737755539284,1.482e-05,257.85,257.81,3.8785]
[1737755539479,1.482e-05,257.85,257.79,0.02500126]
[1737755540987,1.482e-05,257.85,257.83,3.8782]
[1737755544692,1.482e-05,257.85,257.79,0.02500126]
[1737755544889,1.482e-05,257.85,257.84,3.8781]
[1737755549288,1.482e-05,257.85,257.8,3.8786]
[1737755549492,1.482e-05,257.85,257.79,0.02500126]
[1737755552295,3.8784,257.83,257.79,0.02500126]
[1737755552594,1.482e-05,257.85,257.79,0.02500126]
[1737755553396,1.482e-05,257.85,257.82,3.8783]
[1737755553695,1.482e-05,257.85,257.79,0.02500126]
[1737755554289,3.8786,257.81,257.79,0.02500126]
[1737755555096,3.8784,257.83,257.79,0.02500126]
[1737755555295,1.482e-05,257.85,257.79,3.90380126]
[1737755555493,1.482e-05,257.85,257.79,0.02500126]
[1737755556689,1.482e-05,257.85,257.83,3.8782]
[1737755558390,1.482e-05,257.85,257.81,3.8784]
[1737755558792,9.38774151,257.83,257.57,192.0]
[1737755558989,9.38774151,257.76,257.58,5.1608]
[1737755559296,9.38774151,257.68,257.52,9.38774151]
[1737755559489,9.38774151,257.68,257.55,7.8372]
[1737755559889,0.02847628,257.64,257.59,0.02540026]
[1737755561698,0.02847628,257.64,257.59,3.90720026]
[1737755561900,0.02847628,257.64,257.59,0.02540026]
[1737755562198,0.02847628,257.64,257.59,3.90720026]
[1737755562392,0.02847628,257.64,257.59,0.02540026]
[1737755564496,0.02847628,257.64,257.6,3.8817]
[1737755564696,0.02847628,257.64,257.59,0.02540026]
[1737755565200,0.02847628,257.64,257.59,3.90720026]
[1737755566099,0.02847628,257.64,257.59,0.02540026]
[1737755566597,0.02847628,257.64,257.62,3.8813]
[1737755566993,17.54298138,257.75,257.59,0.02540026]
[1737755567193,3.8799,257.73,257.64,3.881]
[1737755567799,17.54298138,257.75,257.55,7.8372]
[1737755568096,0.02610023,257.68,257.55,7.8372]
[1737755568306,0.02610023,257.68,257.62,0.02547543]
[1737755568501,2.3e-07,257.68,257.67,3.8807]
[1737755577512,15.04638138,257.92,257.67,207.04638138]
[1737755577707,15.04638138,257.92,257.68,10.0857]
[1737755578408,15.04638138,257.92,257.62,15.04638138]
[1737755578711,0.02451486,257.8,257.74,0.0257816]
[1737755579016,3.8785,257.82,257.75,3.8794]
[1737755579307,0.0294705,257.8,257.75,3.8794]
[1737755580013,0.0294705,257.8,257.76,3.8793]
[1737755580712,0.0294705,257.8,257.74,0.02560922]
[1737755581212,0.0294705,257.8,257.77,3.8791]
[1737755581904,0.0294705,257.8,257.74,0.02560922]
[1737755582107,3.8791,257.78,257.74,0.02560922]
[1737755582905,0.0294705,257.8,257.74,0.02560922]
[1737755583105,3.9083705,257.8,257.74,0.02560922]
[1737755583313,0.0294705,257.8,257.74,0.02560922]
[1737755584916,0.0294705,257.8,257.78,3.879]
[1737755586117,7.05e-05,257.8,257.78,3.879]
[1737755589918,7.05e-05,257.8,257.74,0.02560922]
[1737755590123,3.8794,257.76,257.74,0.02560922]
[1737755594224,3.8792,257.78,257.74,0.02560922]
[1737755594630,15.04645188,257.8,257.74,0.02560922]
[1737755594928,7.05e-05,257.8,257.74,0.02560922]
[1737755597028,3.8791,257.78,257.74,0.02560922]
[1737755597228,7.05e-05,257.8,257.74,0.02560922]
[1737755598226,15.04645188,257.8,257.74,0.02560922]
[1737755598430,15.04638138,257.75,257.73,3.8797]
[1737755598626,15.04638138,257.8,257.6,2.5313]
[1737755598830,15.04638138,257.8,257.61,4.9367]
[1737755599131,3.8791,257.78,257.61,4.9367]
[1737755599431,15.04638138,257.8,257.61,4.9367]
[1737755599630,0.0270891,257.72,257.7,3.8801]
[1737755599830,15.04638138,257.8,257.7,3.8801]
[1737755600025,0.0267297,257.74,257.68,0.02747357]
[1737755601219,0.0267297,257.74,257.72,3.8798]
[1737755604225,0.0267297,257.74,257.68,0.02747357]
[1737755604431,15.07311108,257.74,257.68,0.02747357]
[1737755604825,15.07311108,257.74,257.6,3.8817]
[1737755605031,15.04638138,257.74,257.53,7.5595]
[1737755605331,15.04638138,257.69,257.53,7.5595]
[1737755605832,15.04638138,257.69,257.5,192.0]
[1737755606132,0.02648404,257.64,257.58,0.02578897]
[1737755607530,15.07286542,257.64,257.58,0.02578897]
[1737755607934,3.8814,257.63,257.58,0.02578897]
[1737755608125,15.07286542,257.64,257.58,0.02578897]
[1737755608631,3.8814,257.63,257.58,0.02578897]
[1737755609233,15.07286542,257.64,257.27,15.04638138]
[1737755609429,15.04638138,257.64,257.39,10.1957]
[1737755610036,3.8821,257.58,257.52,3.8829]
[1737755610232,15.04638138,257.64,257.36,15.04638138]
[1737755610534,2.664,257.57,257.52,0.02603109]
[1737755610736,0.0267861,257.53,257.52,0.02603109]
[1737755612637,0.0267861,257.53,257.31,3.23346714]
[1737755612638,15.07316748,257.53,257.31,15.04638138]
[1737755612834,15.04638138,257.53,257.35,4.8724]
[1737755613132,3.8841,257.45,257.37,3.8852]
[1737755613337,15.04638138,257.48,257.33,5.2045]
[1737755613537,0.02770495,257.43,257.38,0.02615942]
[1737755614436,15.04638138,257.53,257.38,0.02615942]
[1737755614631,2.664,257.57,257.38,15.0725408]
[1737755614936,15.04638138,257.59,257.39,4.6924]
[1737755615237,2.494,257.62,257.39,4.6924]
[1737755615535,0.02789772,257.53,257.48,0.02772853]
[1737755616734,0.02789772,257.53,257.51,3.883]
[1737755617737,0.02789772,257.53,257.49,3.8833]
[1737755618733,3.8832,257.5,257.48,0.02772853]
[1737755618934,0.02789772,257.53,257.34,5.0164]
[1737755619135,15.04638138,257.5,257.34,5.0164]
[1737755619440,15.04638138,257.5,257.35,3.8854]
[1737755619639,2.6916,257.49,257.35,3.8854]
[1737755620242,3.8847,257.41,257.39,0.02841839]
[1737755620639,3.8868,257.27,257.17,3.8882]
[1737755620838,15.04638138,257.35,257.09,15.04638138]
[1737755621041,15.04638138,257.35,257.1,10.3116]
[1737755621243,15.04638138,257.35,257.18,3.8879]
[1737755621543,2.6916,257.34,257.1,10.3116]
[1737755621738,0.02734911,257.25,257.19,0.02596027]
[1737755621947,15.04638138,257.4,257.19,0.02596027]
[1737755622244,15.04638138,257.4,257.15,15.04638138]
[1737755622443,3.8855,257.36,257.22,3.8874]
[1737755622646,15.04638138,257.4,257.23,5.1548]
[1737755622942,3.8852,257.37,257.25,3.887]
[1737755623135,0.0254547,257.34,257.29,0.02532174]
[1737755623339,15.04638138,257.35,257.16,5.1548]
[1737755623544,0.02847262,257.34,257.29,0.02660069]
[1737755623743,7.3825,257.39,257.16,5.1548]
[1737755623939,0.02591273,257.34,257.29,0.02668638]
[1737755624243,0.02591273,257.34,257.32,3.8859]
[1737755624538,2.6441,257.51,257.29,0.02668638]
[1737755624745,15.04638138,257.42,257.2,15.04638138]
[1737755625644,0.02537916,257.34,257.28,0.02620481]
[1737755626244,0.02537916,257.34,257.33,3.8858]
[1737755626645,0.02537916,257.34,257.28,0.02620481]
[1737755628141,0.02537916,257.34,257.32,3.8859]
[1737755629844,0.02537916,257.34,257.3,3.8862]
[1737755630041,0.02537916,257.34,257.28,0.02620481]
[1737755630441,0.02537916,257.34,257.32,3.8858]
[1737755631445,3.8835,257.49,257.41,3.8845]
[1737755632553,0.02859384,257.48,257.42,0.02714819]
[1737755633053,3.91219384,257.48,257.42,0.02714819]
[1737755634243,0.02859384,257.48,257.42,0.02714819]
[1737755635550,3.8839,257.46,257.42,0.02714819]
[1737755636249,3.8842,257.44,257.42,0.02714819]
[1737755636551,0.02859384,257.48,257.42,0.02714819]
[1737755637552,0.02859384,257.48,257.46,3.8838]
[1737755638057,0.02859384,257.48,257.45,3.884]
[1737755638654,0.02859384,257.48,257.43,3.8842]
[1737755638855,0.02859384,257.48,257.42,0.02714819]
[1737755639260,0.02859384,257.48,257.47,3.8837]
[1737755640056,0.02859384,257.48,257.42,0.02714819]
[1737755640057,15.04638138,257.68,257.45,15.04638138]
[1737755640256,15.04638138,257.68,257.45,207.04638138]
[1737755640461,3.881,257.66,257.59,3.8818]
[1737755640650,15.04638138,257.68,257.59,3.8818]
[1737755641055,0.02556837,257.66,257.61,0.02675067]
[1737755642152,3.8819,257.59,257.52,3.8829]
[1737755642357,15.04638138,257.57,257.36,9.8429]
[1737755642557,15.04638138,257.52,257.36,9.8429]
[1737755643361,0.02805684,257.47,257.41,0.02517577]
[1737755646062,3.91185684,257.47,257.41,0.02517577]
[1737755646764,0.02805684,257.47,257.41,3.90977577]
[1737755647153,15.07443822,257.47,257.41,0.02517577]
[1737755647560,3.8842,257.44,257.41,0.02517577]
[1737755648161,3.8844,257.43,257.41,0.02517577]
[1737755649460,15.07443822,257.47,257.41,0.02517577]
[1737755649661,0.02805684,257.47,257.41,0.02517577]
[1737755650558,0.02805684,257.47,257.45,3.8839]
[1737755650760,5.684e-05,257.47,257.45,3.8839]
[1737755654660,17.60688138,257.68,257.6,3.8817]
[1737755655166,17.60688138,257.68,257.43,15.04638138]
[1737755655368,15.04638138,257.62,257.42,10.0656]
[1737755655868,0.02633764,257.55,257.5,3.8832]
[1737755656073,0.02633764,257.55,257.49,0.02659598]
[1737755656762,15.04638138,257.68,257.49,0.02659598]
[1737755656965,15.04638138,257.73,257.5,15.04638138]
[1737755657766,3.8806,257.68,257.5,15.04638138]
[1737755658079,0.02765841,257.64,257.59,0.02656388]
[1737755658266,3.8817,257.61,257.59,0.02656388]
[1737755658467,15.04638138,257.63,257.42,10.0656]
[1737755658666,15.04638138,257.58,257.42,10.0656]
[1737755658868,15.04638138,257.58,257.49,3.8833]
[1737755659576,0.02955243,257.56,257.51,0.02915435]
[1737755660168,3.8825,257.55,257.51,0.02915435]
[1737755661571,0.02955243,257.56,257.51,0.02915435]
[1737755661771,3.8828,257.53,257.51,0.02915435]
[1737755661976,15.04638138,257.53,257.36,192.0]
[1737755662167,15.04638138,257.53,257.32,7.3521]
[1737755662369,15.04638138,257.48,257.32,7.3521]
[1737755662878,3.8843,257.43,257.32,7.3521]
[1737755663175,0.02735776,257.4,257.35,0.02799258]
[1737755663878,0.02735776,257.4,257.35,3.91339258]
[1737755665284,0.02735776,257.4,257.36,3.8853]
[1737755666080,0.02735776,257.4,257.37,3.8852]
[1737755668084,3.8849,257.39,257.35,0.02799258]
[1737755668294,0.02735776,257.4,257.35,0.02799258]
[1737755668991,0.02735776,257.4,257.38,3.885]
[1737755669594,15.04638138,257.53,257.45,3.884]
[1737755670093,15.04638138,257.53,257.38,3.885]
[1737755670295,15.04638138,257.53,257.32,4.6946]
[1737755670792,0.02536714,257.45,257.4,0.02730116]
[1737755671190,0.02536714,257.45,257.44,3.8841]
[1737755671795,0.02536714,257.45,257.42,3.8843]
[1737755672488,0.02536714,257.45,257.4,0.02730116]
[1737755672692,0.02536714,257.45,257.44,3.8842]
[1737755675900,6.714e-05,257.45,257.44,3.8842]
[1737755678804,2.5721,257.64,257.42,2.4883]
[1737755679003,2.5721,257.64,257.59,3.8819]
[1737755679406,2.5721,257.64,257.42,194.4883]
[1737755679604,2.5721,257.64,257.57,3.882]
[1737755679899,3.8815,257.62,257.42,194.4883]
[1737755680105,15.07405323,257.63,257.58,0.0257508]
[1737755680303,15.04638138,257.63,257.58,0.02704502]
[1737755680604,3.8818,257.6,257.58,0.02704502]
[1737755681505,15.07313647,257.63,257.58,0.02704502]
[1737755683605,3.8818,257.6,257.58,0.02704502]
[1737755685199,3.8817,257.61,257.58,0.02704502]
[1737755685399,15.07313647,257.63,257.58,0.02704502]
[1737755686107,3.8819,257.59,257.58,0.02704502]
[1737755687408,0.02675509,257.63,257.58,0.02704502]
[1737755687910,0.02675509,257.63,257.61,3.8814]
[1737755693208,0.02675509,257.63,257.58,0.02704502]
[1737755693510,0.02675509,257.63,257.62,3.8814]
[1737755695210,5.509e-05,257.63,257.62,3.8814]
[1737755701115,5.509e-05,257.63,257.59,4.9933]
[1737755701319,5.509e-05,257.63,257.58,0.02704502]
[1737755701618,5.509e-05,257.63,257.62,3.8814]
[1737755706215,5.509e-05,257.63,257.6,9.39908108]
[1737755706216,9.39908108,257.79,257.6,9.39908108]
[1737755706415,9.39908108,257.79,257.6,201.39908108]
[1737755707115,9.39908108,257.79,257.74,3.8795]
[1737755707516,9.39908108,257.79,257.6,201.39908108]
[1737755707918,9.39908108,257.79,257.67,0.02768582]
[1737755709126,3.879,257.78,257.67,0.02768582]
[1737755709825,9.39908108,257.79,257.67,0.02768582]
[1737755710227,13.27798108,257.79,257.72,3.8798]
[1737755710527,9.39908108,257.79,257.72,3.8798]
[1737755710821,9.39908108,257.79,257.73,0.02499429]
[1737755711529,3.8795,257.75,257.73,0.02499429]
[1737755712630,9.39908108,257.75,257.73,0.02499429]
[1737755712922,9.39908108,257.75,257.6,192.0]
[1737755713131,9.39908108,257.75,257.58,2.473]
[1737755713428,9.39908108,257.71,257.58,2.473]
[1737755713626,9.39908108,257.67,257.52,9.39908108]
[1737755713926,3.8806,257.68,257.52,9.39908108]
[1737755714126,0.02478605,257.62,257.57,0.0295383]
[1737755715028,0.02478605,257.62,257.61,3.8816]
[1737755715223,0.02478605,257.62,257.57,0.0295383]
[1737755717129,0.02478605,257.62,257.6,3.8817]
[1737755717424,0.02478605,257.62,257.57,0.0295383]
[1737755718925,0.02478605,257.62,257.6,3.8817]
[1737755719332,0.02478605,257.62,257.57,0.0295383]
[1737755721333,2.56288605,257.62,257.57,0.0295383]
[1737755722134,6.44448605,257.62,257.57,0.0295383]
[1737755723231,3.8816,257.61,257.57,3.9117383]
[1737755723432,3.8816,257.61,257.57,0.0295383]
[1737755725131,3.8817,257.6,257.57,0.0295383]
[1737755725638,3.8818,257.6,257.57,0.0295383]
[1737755725836,2.56288605,257.62,257.57,0.0295383]
[1737755726429,3.8816,257.61,257.57,0.0295383]
[1737755728339,3.8816,257.61,257.57,3.9117383]
[1737755729943,2.56288605,257.62,257.57,3.9117383]
[1737755730443,6.44438605,257.62,257.57,3.9117383]
[1737755731139,9.39908108,257.6,257.57,0.0295383]
[1737755731643,3.8819,257.59,257.57,0.0295383]
[1737755733438,2.56288605,257.62,257.57,0.0295383]
[1737755733642,3.882,257.58,257.57,0.0295383]
[1737755736143,3.8819,257.59,257.57,0.0295383]
[1737755738643,3.882,257.58,257.57,0.0295383]
[1737755739742,9.90405945,257.58,257.57,0.0295383]
[1737755740245,6.02205945,257.58,257.57,0.0295383]
[1737755741641,0.02478605,257.62,257.61,3.8816]
[1737755741835,8.605e-05,257.62,257.61,9.90365945]
[1737755742239,8.605e-05,257.62,257.61,3.8816]
[1737755747447,9.40291687,257.82,257.6,9.40291687]
[1737755747642,9.40291687,257.82,257.65,9.40291687]
[1737755747837,9.40291687,257.78,257.64,3.8811]
[1737755748041,9.40291687,257.74,257.57,201.9564]
[1737755748239,2.4642,257.73,257.57,9.9564]
[1737755748641,2.4642,257.73,257.62,0.02864393]
[1737755749548,2.6224,257.77,257.62,0.02864393]
[1737755749946,9.40291687,257.79,257.62,0.02864393]
[1737755750146,3.8791,257.78,257.72,3.8799]
[1737755750645,9.40291687,257.79,257.72,3.8799]
[1737755750846,3.8792,257.77,257.72,3.8799]
[1737755751041,9.40291687,257.79,257.68,0.02467689]
[1737755751246,2.4642,257.8,257.68,0.02467689]
[1737755751644,2.4642,257.8,257.76,3.8793]
[1737755751839,5.30982633,257.81,257.67,9.40291687]
[1737755752044,9.40291687,257.83,257.71,0.02479979]
[1737755752244,9.40291687,257.83,257.75,3.8794]
[1737755752647,9.40291687,257.83,257.76,0.02455125]
[1737755752848,3.8785,257.82,257.77,3.8791]
[1737755753048,9.40291687,257.83,257.76,0.02455125]
[1737755754049,2.72098669,257.85,257.76,0.02455125]
[1737755754244,2.72098669,257.85,257.81,3.8786]
[1737755754847,2.72098669,257.85,257.76,0.02455125]
[1737755755141,9.40291687,257.83,257.76,0.02455125]
[1737755755549,3.8784,257.83,257.79,3.8789]
[1737755755946,3.8781,257.84,257.79,3.8789]
[1737755756148,12.03821687,257.87,257.81,3.8786]
[1737755756346,9.40291687,257.87,257.71,9.40291687]
[1737755756548,9.40291687,257.91,257.81,0.02889546]
[1737755757045,3.8784,257.82,257.81,0.02889546]
[1737755757349,9.40291687,257.93,257.81,0.02889546]
[1737755757944,9.40291687,257.93,257.84,3.878]
[1737755758142,9.40291687,257.93,257.81,0.02889546]
[1737755758345,3.8771,257.92,257.81,0.02889546]
[1737755758546,9.40291687,257.93,257.87,3.8776]
[1737755758952,9.40291687,257.93,257.87,3.90275353]
[1737755759448,13.27971687,257.93,257.87,3.90275353]
[1737755759846,2.6109,257.96,257.87,0.02515353]
[1737755760053,3.8767,257.94,257.87,0.02515353]
[1737755760447,3.8768,257.93,257.87,3.90275353]
[1737755761849,2.6109,257.96,257.87,3.90275353]
[1737755762051,3.8774,257.89,257.87,0.02515353]
[1737755762755,3.879,257.79,257.73,3.8797]
[1737755763050,9.40291687,257.89,257.7,9.40291687]
[1737755763447,9.40291687,257.89,257.75,3.8795]
[1737755763647,9.40291687,257.89,257.7,9.40291687]
[1737755763853,0.02625191,257.85,257.79,0.02892669]
[1737755764151,3.8785,257.82,257.79,0.02892669]
[1737755764745,3.8786,257.81,257.79,0.02892669]
[1737755766750,0.02625191,257.85,257.79,0.02892669]
[1737755766948,3.90435191,257.85,257.79,0.02892669]
[1737755767145,9.40291687,257.84,257.79,0.02892669]
[1737755767448,3.8786,257.81,257.79,0.02892669]
[1737755767653,0.02625191,257.85,257.79,0.02892669]
[1737755768053,3.8782,257.84,257.79,3.90782669]
[1737755768254,0.02625191,257.85,257.79,0.02892669]
[1737755768658,3.8786,257.81,257.79,0.02892669]
[1737755769859,0.02625191,257.85,257.79,0.02892669]
[1737755771061,3.90425191,257.85,257.79,3.90762669]
[1737755771555,0.02625191,257.85,257.79,0.02892669]
[1737755771860,3.8785,257.82,257.79,0.02892669]
[1737755772558,0.02625191,257.85,257.79,0.02892669]
[1737755772757,3.8786,257.81,257.79,0.02892669]
[1737755773460,3.8782,257.84,257.79,0.02892669]
[1737755775158,3.8782,257.84,257.79,3.90762669]
[1737755777154,0.02625191,257.85,257.79,0.02892669]
[1737755777361,9.40291687,257.97,257.81,9.40291687]
[1737755777660,63.40673788,258.02,257.88,6.00305351]
[1737755777661,27.27166405,257.98,257.88,6.00305351]
[1737755778162,31.14776405,257.98,257.88,6.00305351]
[1737755778358,9.87915351,257.98,257.88,6.00305351]
[1737755778557,9.87915351,257.98,257.9,0.02591623]
[1737755779053,6.00305351,257.98,257.9,0.02591623]
[1737755779257,3.8764,257.96,257.91,3.8769]
[1737755779455,6.00305351,257.98,257.9,0.02591623]
[1737755779652,5.30982633,257.99,257.9,0.02591623]
[1737755781463,9.38120165,258.0,257.9,0.02591623]
[1737755781764,9.38120165,257.96,257.9,0.02591623]
[1737755782057,13.25820165,257.92,257.9,0.02591623]
[1737755783063,9.38120165,257.92,257.9,0.02591623]
[1737755783263,3.8779,257.86,257.81,3.8785]
[1737755783464,9.38120165,257.92,257.74,19.59590165]
[1737755783968,3.8777,257.87,257.74,19.59590165]
[1737755784460,0.02821486,257.83,257.78,0.02833051]
[1737755784863,0.02821486,257.83,257.79,3.8788]
[1737755785067,0.02821486,257.83,257.78,0.02833051]
[1737755786665,0.02821486,257.83,257.8,3.8787]
[1737755786873,0.02821486,257.83,257.78,0.02833051]
[1737755789073,3.8789,257.79,257.78,0.02833051]
[1737755791073,3.8785,257.82,257.78,0.02833051]
[1737755791779,0.02821486,257.83,257.78,0.02833051]
[1737755791973,0.02821486,257.83,257.8,3.8787]
[1737755792173,0.02821486,257.83,257.78,0.02833051]
[1737755792977,0.02821486,257.83,257.78,3.90723051]
[1737755793380,0.02821486,257.83,257.78,0.02833051]
[1737755794177,0.02821486,257.83,257.79,3.8789]
[1737755794374,0.02821486,257.83,257.78,0.02833051]
[1737755794675,0.02821486,257.83,257.82,3.8784]
[1737755797079,0.02821486,257.83,257.78,0.02833051]
[1737755797676,0.02821486,257.83,257.82,3.8784]
[1737755800782,0.02821486,257.83,257.78,0.02833051]
[1737755801184,3.8789,257.79,257.78,0.02833051]
[1737755801376,9.38120165,257.8,257.66,9.7816]
[1737755801772,6.01295975,257.77,257.69,9.89325975]
[1737755801979,2.5924,257.83,257.66,9.7816]
[1737755801980,6.01295975,257.83,257.72,6.01295975]
[1737755802381,0.02477366,257.8,257.75,0.02585015]
[1737755805486,3.90357366,257.8,257.75,0.02585015]
[1737755806183,0.02477366,257.8,257.75,0.02585015]
[1737755806488,3.8793,257.77,257.75,0.02585015]
[1737755808083,3.8793,257.76,257.75,0.02585015]
[1737755813295,3.8792,257.77,257.75,0.02585015]
[1737755814791,0.02477366,257.8,257.75,0.02585015]
[1737755816990,3.8793,257.76,257.75,0.02585015]
[1737755817998,3.8792,257.77,257.75,0.02585015]
[1737755818593,3.8793,257.76,257.75,0.02585015]
[1737755819097,9.4163801,257.8,257.75,0.02585015]
[1737755819899,3.8792,257.77,257.75,0.02585015]
[1737755820701,3.879,257.78,257.75,0.02585015]
[1737755823002,0.02477366,257.8,257.75,0.02585015]
[1737755823898,0.02477366,257.8,257.76,3.8793]
[1737755824101,0.02477366,257.8,257.75,0.02585015]
[1737755824501,0.02477366,257.8,257.76,3.8793]
[1737755824704,0.02477366,257.8,257.75,0.02585015]
[1737755825407,0.02477366,257.8,257.78,3.8789]
[1737755826002,0.02477366,257.8,257.75,0.02585015]
[1737755826508,3.8793,257.76,257.75,0.02585015]
[1737755826909,9.39160644,257.76,257.59,9.39160644]
[1737755827101,3.8803,257.7,257.59,9.39160644]
[1737755827304,9.39160644,257.76,257.59,9.39160644]
[1737755827910,3.8801,257.71,257.64,3.8811]
[1737755828108,0.02568796,257.7,257.65,0.02958932]
[1737755828509,3.8807,257.67,257.65,0.02958932]
[1737755829101,0.02568796,257.7,257.65,0.02958932]
[1737755830407,0.02568796,257.7,257.65,3.91048932]
[1737755831212,0.02568796,257.7,257.65,0.02958932]
[1737755831508,0.02568796,257.7,257.67,3.8806]
[1737755832123,0.02568796,257.7,257.68,3.8805]
[1737755833309,0.02568796,257.7,257.67,3.8806]
[1737755833609,0.02568796,257.7,257.65,0.02958932]
[1737755834811,0.02568796,257.7,257.69,3.8804]
[1737755836707,3.8791,257.78,257.73,3.8796]
[1737755837112,3.8791,257.78,257.63,9.39160644]
[1737755837312,9.39160644,257.8,257.63,9.39160644]
[1737755837517,9.39160644,257.84,257.67,9.39160644]
[1737755837706,9.39160644,257.84,257.68,4.6639]
[1737755837913,3.878,257.85,257.73,0.02870641]
[1737755838112,0.02613203,257.79,257.73,0.02870641]
[1737755838418,0.02613203,257.79,257.78,3.879]
[1737755842124,0.02613203,257.79,257.76,3.8792]
[1737755842532,0.02613203,257.79,257.73,0.02870641]
[1737755843125,0.02613203,257.79,257.78,3.879]
[1737755843423,0.02613203,257.79,257.73,0.02870641]
[1737755844827,0.02613203,257.79,257.76,3.8793]
[1737755845125,0.02613203,257.79,257.73,0.02870641]
[1737755846125,0.02613203,257.79,257.78,3.879]
[1737755847127,5.30982633,257.93,257.75,9.39160644]
[1737755847419,5.30982633,257.93,257.8,9.39160644]
[1737755847618,5.30982633,257.93,257.81,7.4501]
[1737755847818,5.30982633,257.93,257.84,3.878]
[1737755848016,5.30982633,257.93,257.81,7.4501]
[1737755848221,5.30982633,257.93,257.84,0.02922035]
[1737755848427,0.02940509,257.9,257.84,0.02922035]
[1737755849318,0.02940509,257.9,257.89,3.8774]
[1737755850328,0.02940509,257.9,257.84,0.02922035]
[1737755852227,3.8777,257.87,257.84,0.02922035]
[1737755854030,3.878,257.85,257.84,0.02922035]
[1737755854530,9.39160644,257.88,257.63,9.39160644]
[1737755854731,3.8787,257.81,257.76,3.8793]
[1737755855434,9.39160644,257.82,257.77,3.8791]
[1737755855630,0.02834936,257.78,257.77,3.8791]
[1737755857730,3.8781,257.84,257.79,3.8789]
[1737755858836,3.90476789,257.84,257.79,3.90839041]
[1737755865747,0.02666789,257.84,257.83,3.8783]
[1737755869044,6.789e-05,257.84,257.83,3.8783]
[1737755872541,6.789e-05,257.84,257.79,0.02949041]
[1737755873044,3.8787,257.8,257.79,0.02949041]
[1737755874145,3.8785,257.82,257.79,0.02949041]
[1737755875746,6.789e-05,257.84,257.79,0.02949041]
[1737755875747,3.8787,257.8,257.79,0.02949041]
[1737755877252,3.8794,257.76,257.7,3.8802]
[1737755877552,9.39160644,257.81,257.64,7.2411]
[1737755877947,3.8795,257.75,257.7,3.8802]
[1737755878346,3.90853214,257.75,257.7,3.9057919]
[1737755880248,0.02903214,257.75,257.7,3.9057919]
[1737755880644,0.02903214,257.75,257.7,0.0255919]
[1737755881450,0.02903214,257.75,257.74,3.8796]
[1737755882446,0.02903214,257.75,257.7,0.0255919]
[1737755882653,0.02903214,257.75,257.7,3.9056919]
[1737755883452,3.8797,257.74,257.7,0.0255919]
[1737755883654,0.02903214,257.75,257.7,0.0255919]
[1737755884150,3.8801,257.71,257.7,0.0255919]
[1737755884649,0.02903214,257.75,257.7,0.0255919]
[1737755885546,0.02903214,257.75,257.72,3.8798]
[1737755886846,0.02903214,257.75,257.72,3.8799]
[1737755887051,0.02903214,257.75,257.7,0.0255919]
[1737755888852,0.02903214,257.75,257.74,3.8796]
[1737755889856,0.02903214,257.75,257.71,7.6036]
[1737755891055,0.02903214,257.75,257.74,3.8796]
[1737755892459,2.6154,257.86,257.71,7.6036]
[1737755892658,3.8781,257.84,257.79,3.8788]
[1737755893658,3.8781,257.84,257.79,3.90395356]
[1737755896958,9.39160644,257.93,257.79,0.02515356]
[1737755898162,3.8772,257.9,257.79,0.02515356]
[1737755899763,9.39160644,257.88,257.79,0.02515356]
[1737755900860,3.8784,257.82,257.79,0.02515356]
[1737755901066,9.39160644,257.88,257.79,0.02515356]
[1737755901765,9.39160644,257.88,257.79,3.90395356]
[1737755902471,9.39160644,257.88,257.79,0.02515356]
[1737755902665,3.8781,257.84,257.8,3.8787]
[1737755903166,3.8777,257.88,257.79,0.02515356]
[1737755903468,9.39160644,257.92,257.79,0.02515356]
[1737755903971,3.8774,257.89,257.84,3.8781]
[1737755904262,9.39160644,257.92,257.78,9.39160644]
[1737755904459,30.66021698,257.96,257.92,3.8769]
[1737755905062,34.53661698,257.96,257.92,3.8769]
[1737755905369,34.53661698,257.96,257.91,0.02818429]
[1737755905565,3.8766,257.94,257.91,0.02818429]
[1737755907272,3.8769,257.92,257.91,0.02818429]
[1737755907770,13.26850644,257.92,257.91,0.02818429]
[1737755908660,3.8769,257.92,257.91,0.02818429]
[1737755909065,13.26850644,257.92,257.91,0.02818429]
[1737755909271,9.39160644,257.92,257.73,9.39160644]
[1737755909568,3.8778,257.87,257.73,9.39160644]
[1737755909970,3.8778,257.87,257.82,3.8783]
[1737755910566,3.90454576,257.87,257.82,3.90811851]
[1737755911874,3.90454576,257.87,257.82,0.02981851]